fUST/lending_fUST_20240321
["ID","MTS","AMOUNT","RATE_DAILY","PERIOD"]
[319843078,1710992848381,-500.0,0.00061017,120]
[319843079,1710992848401,-500.0,0.00061017,120]
[319843080,1710992848422,-500.0,0.00061017,120]
[319843081,1710992848441,-500.84502312,0.00061017,120]
[319843082,1710992848461,-611.85,0.00061017,120]
[319843083,1710992848481,-500.0,0.00061017,120]
[319843084,1710992848503,-544.99894201,0.00061017,120]
[319843085,1710992848524,-500.0,0.00061017,120]
[319843086,1710992848545,-151.0,0.00061017,120]
[319843087,1710992848565,-151.0,0.00061017,120]
[319843088,1710992848587,-500.0,0.00061017,120]
[319843089,1710992848608,-523.75,0.00061017,120]
[319843090,1710992848628,-500.0,0.00061017,120]
[319843091,1710992848649,-500.0,0.00061017,120]
[319843092,1710992848669,-3141.4,0.00061017,120]
[319843093,1710992848689,-6786.49,0.00061017,120]
[319843094,1710992848711,-500.0,0.00061017,120]
[319843095,1710992848733,-4920.3,0.00061017,90]
[319843096,1710992848756,-500.0,0.00061017,120]
[319843097,1710992848777,-1149.17,0.00061017,120]
[319843098,1710992848804,-1038.1,0.00061017,120]
[319843099,1710992848826,-500.0,0.00061017,120]
[319843100,1710992848850,-512.87,0.00061017,120]
[319843101,1710992848872,-1896.23,0.00061017,120]
[319843102,1710992848893,-940.454769,0.00061017,120]
[319843103,1710992848913,-940.454769,0.00061017,120]
[319843104,1710992848933,-500.0,0.00061017,120]
[319843105,1710992848953,-500.0,0.00061017,120]
[319843106,1710992848974,-817.79,0.00061017,120]
[319843107,1710992848993,-500.0,0.00061017,120]
[319843108,1710992849015,-500.0,0.00061017,120]
[319843109,1710992849034,-500.0,0.00061017,120]
[319843110,1710992849055,-1601.61,0.00061017,120]
[319843111,1710992849075,-500.0,0.00061017,120]
[319843112,1710992849095,-500.0,0.00061017,120]
[319843113,1710992849116,-500.0,0.00061017,120]
[319843114,1710992849138,-500.0,0.00061017,120]
[319843115,1710992849158,-540.59854645,0.00061018,4]
[319843116,1710992849178,-154.84515485,0.00061018,120]
[319843117,1710992849199,-21314.99693288,0.00061018,7]
[319843118,1710992849219,-12624.50900065,0.00061018,7]
[319843119,1710992849239,-208.34681873,0.00061018,7]
[319843120,1710992849261,-815.2275991,0.00061018,120]
[319843121,1710992849299,-431.2707999,0.00061018,120]
[319843122,1710992849326,-1246.498399,0.00061018,120]
[319843123,1710992849349,-5000.0,0.00061018,120]
[319843124,1710992849373,-5000.0,0.00061018,120]
[319843125,1710992849400,-5000.0,0.00061018,120]
[319843126,1710992849426,-3397.8075711,0.00061018,120]
[319843127,1710992849512,-1602.1924289,0.00061018,120]
[319843128,1710992849536,-5000.0,0.00061018,120]
[319843129,1710992849561,-5000.0,0.00061018,120]
[319843130,1710992849587,-5000.0,0.00061018,120]
[319843131,1710992849610,-151.0,0.00061018,120]
[319843132,1710992849634,-5000.0,0.00061018,120]
[319843133,1710992849659,-5000.0,0.00061018,120]
[319843134,1710992849685,-5000.0,0.00061018,120]
[319843135,1710992849709,-151.0,0.00061018,120]
[319843136,1710992849733,-4818.272447,0.00061018,120]
[319843137,1710992849761,-940.454769,0.00061018,120]
[319843138,1710992849786,-940.454769,0.00061018,120]
[319843139,1710992849812,-940.454769,0.00061018,120]
[319843140,1710992849837,-940.454769,0.00061018,120]
[319843141,1710992849859,-500.0,0.00061118,120]
[319843142,1710992849884,-485.5112055,0.00063012,120]
[319843143,1710992849910,-500.0,0.00063012,120]
[319843144,1710992849934,-500.0,0.00063012,120]
[319843145,1710992849957,-500.0,0.00063012,120]
[319843146,1710992849981,-1372.15,0.00063012,120]
[319843147,1710992850008,-1539.35,0.00063012,120]
[319843148,1710992850030,-591.15,0.00063218,120]
[319843149,1710992850053,-500.0,0.00063218,120]
[319843150,1710992850077,-827.63,0.00063218,120]
[319843151,1710992850100,-632.39,0.00063218,60]
[319843152,1710992850122,-500.0,0.00063218,120]
[319843153,1710992850145,-500.0,0.00063218,120]
[319843154,1710992850168,-6340.42,0.00063218,120]
[319843155,1710992850192,-500.0,0.00063218,120]
[319843156,1710992850216,-1966.45,0.00063218,120]
[319843157,1710992850242,-2536.73,0.00063218,120]
[319843158,1710992850270,-3278.08,0.00063218,120]
[319843159,1710992850293,-376.61253395,0.00063218,120]
[319843160,1710992850313,-3168.66663002,0.00063657,2]
[319843161,1710992850333,-940.454769,0.00063657,120]
[319843162,1710992850430,-940.454769,0.00063657,120]
[319843163,1710992850479,-154.31,0.00063657,30]
[319843164,1710992850499,-965.91808908,0.00063658,120]
[319843296,1710993038204,-864.58370043,0.00052794,4]
[319843297,1710993038214,-500.0,0.00052795,120]
[319843298,1710993038223,-500.0,0.00052798,120]
[319843299,1710993038232,-500.0,0.00052798,120]
[319843300,1710993038241,-1307.82,0.00052798,120]
[319843301,1710993038249,-1053.4,0.00052798,120]
[319843302,1710993038258,-951.6,0.00052798,120]
[319843303,1710993038267,-500.0,0.00052798,120]
[319843304,1710993038276,-413.82,0.00052798,120]
[319843305,1710993038284,-1738.21,0.00052798,120]
[319843306,1710993038293,-500.0,0.00052798,120]
[319843307,1710993038303,-749.64,0.00052798,120]
[319843308,1710993038312,-500.0,0.00052798,120]
[319843309,1710993038321,-500.0,0.00052798,120]
[319843310,1710993038330,-522.18,0.00052798,120]
[319843311,1710993038338,-500.0,0.00052798,120]
[319843312,1710993038347,-1000.0,0.000528,2]
[319843313,1710993038357,-5655.41,0.00052899,120]
[319843314,1710993038366,-391.0584978,0.00052899,120]
[319843315,1710993038377,-108.9415022,0.00052899,120]
[319843316,1710993038386,-500.0,0.00052899,120]
[319843317,1710993038398,-500.0,0.00052899,120]
[319843318,1710993038407,-500.0,0.00054793,120]
[319843319,1710993038416,-217.6180453,0.00054794,120]
[319843393,1710993043653,-500.0,0.00052798,120]
[319843394,1710993043663,-1334.68,0.00052899,120]
[319843395,1710993043672,-282.3819547,0.00054794,120]
[319843396,1710993043681,-500.0,0.00054999,120]
[319843397,1710993043690,-500.0,0.00054999,120]
[319843398,1710993043699,-4297.19837887,0.00055537,4]
[319843399,1710993043712,-2994.73283739,0.00055537,4]
[319843400,1710993043721,-424.26716261,0.00055538,120]
[319843438,1710993046267,-56.33314626,0.00055538,120]
[319843439,1710993046277,-273.63810733,0.00055538,120]
[319843441,1710994037163,-285.41658875,0.00031161,4]
[319843442,1710994037186,-214.58341125,0.00031162,4]
[319843443,1710994150137,-6165.85640297,0.00031162,4]
[319843444,1710994150163,-154.84515485,0.00031162,30]
[319843445,1710994150188,-420.46553613,0.00031162,2]
[319843446,1710994150218,-3909.422001,0.00031163,2]
[319843447,1710994150247,-864.58370043,0.00034,4]
[319843448,1710994150272,-291.91839172,0.000393,2]
[319843449,1710994150293,-3000.0,0.00046471,2]
[319843450,1710994150322,-490.40784,0.00046608,2]
[319843451,1710994150347,-195.1556188,0.00046851,120]
[319843452,1710994150371,-938.40868398,0.00049113,4]
[319843453,1710994150395,-700.0,0.0005,120]
[319843454,1710994150418,-240.47445586,0.00050113,4]
[319843455,1710994150444,-7474.79566581,0.00050114,2]
[319843456,1710994150481,-11513.87360519,0.00050114,2]
[319843457,1710994165817,154.84515485,0.00031162,30]
[319843458,1710994169525,420.46553613,0.00031162,2]
[319843459,1710994183695,154.84515485,0.00031162,30]
[319843460,1710994184877,500.0,0.00045555,120]
[319843461,1710994189537,420.46553613,0.00031162,2]
[319843462,1710994201704,154.84515485,0.00031162,30]
[319843463,1710994213535,266.29499366,0.00031162,2]
[319843464,1710994219903,240.32495091,0.00031162,30]
[319843514,1710994232800,-150.83408251,0.00052629,2]
[319843516,1710994232811,-500.0,0.00052798,120]
[319843518,1710994232821,-500.0,0.00052798,120]
[319843520,1710994232831,-500.0,0.00052798,120]
[319843522,1710994232841,-500.0,0.00052798,120]
[319843524,1710994232851,-500.0,0.00052798,120]
[319843526,1710994232861,-500.0,0.00052798,120]
[319843528,1710994232872,-242.70849288,0.00052798,120]
[319843530,1710994232882,-500.0,0.00052798,120]
[319843532,1710994232892,-500.0,0.00052798,120]
[319843534,1710994232902,-500.0,0.00052798,120]
[319843536,1710994232912,-500.0,0.00052798,120]
[319843538,1710994232923,-500.0,0.00052798,120]
[319843539,1710994232933,-500.0,0.00052798,120]
[319843541,1710994232944,-500.0,0.00052798,120]
[319843543,1710994232955,-402.5114808,0.00052798,120]
[319843545,1710994232966,-2600.72417226,0.00052897,4]
[319843547,1710994232976,-864.58370043,0.00054793,4]
[319843548,1710994232986,-689.69,0.00054794,120]
[319843549,1710994232996,-500.0,0.00054794,120]
[319843551,1710994233006,-500.0,0.00054794,120]
[319843553,1710994233016,-500.0,0.00054794,120]
[319843555,1710994233034,-500.17,0.000555,120]
[319843557,1710994233043,-302.74513287,0.00055538,120]
[319843559,1710994233053,-590.87708693,0.00055538,120]
[319843560,1710994233062,-500.0,0.00055538,120]
[319843562,1710994233071,-500.0,0.00055538,120]
[319843563,1710994233081,-689.69,0.00055538,120]
[319843565,1710994233090,-500.53341375,0.00055538,120]
[319843567,1710994233099,-500.0,0.00055538,120]
[319843569,1710994233108,-500.0,0.00055538,120]
[319843571,1710994233118,-500.0,0.00055538,120]
[319843573,1710994233127,-500.0,0.00055538,120]
[319843576,1710994233145,-500.0,0.00055538,120]
[319843578,1710994233156,-500.0,0.00055538,120]
[319843580,1710994233166,-500.0,0.00055538,120]
[319843582,1710994233175,-500.0,0.00055538,120]
[319843584,1710994233185,-558.96031964,0.00057432,2]
[319843586,1710994233194,-2639.60530248,0.00057529,4]
[319843588,1710994233205,-2617.83,0.00057531,120]
[319843590,1710994233214,-500.0,0.00057531,120]
[319843592,1710994233223,-5419.77,0.00057531,120]
[319843593,1710994233232,-500.0,0.00057531,120]
[319843596,1710994233246,-500.0,0.00057531,120]
[319843597,1710994233256,-500.0,0.00057531,120]
[319843600,1710994233273,-500.0,0.00057531,120]
[319843601,1710994233283,-1279.06,0.00057531,120]
[319843603,1710994233301,-500.0,0.00057532,120]
[319843605,1710994233311,-500.0,0.00057532,120]
[319843607,1710994233326,-594.83114997,0.00057532,120]
[319843609,1710994233335,-158.63792021,0.00057532,2]
[319843611,1710994233345,-501.546322,0.00057532,120]
[319843613,1710994233355,-155.23302835,0.00057532,2]
[319843615,1710994233366,-500.0,0.00057532,2]
[319843617,1710994233376,-500.0,0.00057532,2]
[319843618,1710994233386,-500.0,0.00057532,120]
[319843619,1710994233396,-1241.93,0.00057532,120]
[319843620,1710994233406,-500.0,0.00057532,120]
[319843621,1710994233418,-500.0,0.00057532,120]
[319843622,1710994233428,-500.0,0.00057532,120]
[319843623,1710994233437,-500.43,0.00057532,120]
[319843624,1710994233447,-500.0,0.00057532,120]
[319843625,1710994233456,-500.0,0.00057532,120]
[319843626,1710994233466,-500.0,0.00057532,120]
[319843627,1710994233475,-282.60745414,0.00057532,120]
[319843628,1710994233484,-1143.46,0.00057532,120]
[319843629,1710994233493,-592.03652191,0.00057532,120]
[319843631,1710994233503,-500.0,0.00057532,120]
[319843633,1710994233513,-151.0,0.00057532,120]
[319843635,1710994233529,-1282.79,0.00057532,120]
[319843637,1710994233538,-4654.23,0.00057532,90]
[319843639,1710994233547,-500.0,0.00057532,120]
[319843641,1710994233557,-216.52645904,0.00057532,120]
[319843643,1710994233566,-500.0,0.00057532,120]
[319843645,1710994233575,-500.0,0.00057532,120]
[319843647,1710994233585,-911.95,0.00057532,120]
[319843649,1710994233594,-1009.51,0.00057532,120]
[319843651,1710994233603,-1665.78,0.00057532,120]
[319843653,1710994233613,-500.0,0.00057532,120]
[319843655,1710994233622,-500.0,0.00057532,120]
[319843657,1710994233631,-718.41,0.00057532,120]
[319843659,1710994233640,-500.0,0.00057532,120]
[319843661,1710994233649,-715.32,0.00057532,120]
[319843663,1710994233659,-155.44484113,0.00057532,120]
[319843665,1710994233668,-596.46444731,0.00057532,120]
[319843667,1710994233678,-500.0,0.00057532,120]
[319843669,1710994233687,-500.0,0.00057532,120]
[319843671,1710994233696,-339.42350341,0.00057962,4]
[319843673,1710994233706,-246.30742293,0.00058277,2]
[319843675,1710994233715,-500.0,0.00058278,120]
[319843677,1710994233725,-689.69,0.00058278,120]
[319843679,1710994233734,-500.0,0.00058278,120]
[319843681,1710994233744,-500.0,0.00058278,120]
[319843684,1710994233755,-500.0,0.00058278,120]
[319843686,1710994233766,-500.0,0.00058278,120]
[319843688,1710994233781,-500.0,0.00058278,120]
[319843690,1710994233791,-500.0,0.00058278,120]
[319843692,1710994233801,-500.0,0.00058278,120]
[319843694,1710994233810,-500.0,0.00058278,120]
[319843695,1710994233820,-896.92,0.00058377,120]
[319843697,1710994233830,-500.0,0.00058377,120]
[319843700,1710994233839,-1000.0,0.0006,120]
[319843702,1710994233849,-426.94805741,0.00060271,120]
[319843704,1710994233859,-2617.83,0.00060271,120]
[319843706,1710994233868,-3526.60774885,0.00060271,120]
[319843816,1710994238388,-500.0,0.00057532,120]
[319843817,1710994238398,-1893.16225115,0.00060271,120]
[319843818,1710994238407,-500.0,0.00060271,120]
[319843819,1710994238417,-500.0,0.00060271,120]
[319843821,1710994238426,-500.0,0.00060271,120]
[319843822,1710994238436,-500.0,0.00060271,120]
[319843823,1710994238445,-1279.06,0.00060271,120]
[319843824,1710994238455,-500.457258,0.00060272,120]
[319843825,1710994238464,-6.62155455,0.00060272,2]
[319843826,1710994238475,-242.01924545,0.00060272,2]
[319843827,1710994238485,-500.0,0.00060272,120]
[319843828,1710994238494,-1241.93,0.00060272,120]
[319843829,1710994238504,-500.0,0.00060272,120]
[319843830,1710994238514,-500.0,0.00060272,120]
[319843831,1710994238528,-500.0,0.00060272,120]
[319843832,1710994238537,-500.43,0.00060272,120]
[319843833,1710994238546,-500.0,0.00060272,120]
[319843835,1710994238556,-500.0,0.00060272,120]
[319843838,1710994238565,-500.0,0.00060272,120]
[319843841,1710994238574,-1143.46,0.00060272,120]
[319843843,1710994238583,-500.0,0.00060272,120]
[319843845,1710994238593,-151.0,0.00060272,120]
[319843846,1710994238601,-1282.79,0.00060272,120]
[319843847,1710994238611,-3813.1791663,0.00060272,90]
[319843848,1710994238623,-841.0508337,0.00060272,90]
[319843850,1710994238739,-100.42477515,0.00060272,120]
[319843851,1710994238752,-399.57522485,0.00060272,120]
[319843852,1710994238761,-500.0,0.00060272,120]
[319843853,1710994238773,-500.0,0.00060272,120]
[319843854,1710994238782,-911.95,0.00060272,120]
[319843855,1710994238791,-1009.51,0.00060272,120]
[319843856,1710994238800,-1665.78,0.00060272,120]
[319843857,1710994238809,-112.94507043,0.00060272,120]
[319843865,1710994240630,-389.06917644,0.00060272,120]
[319843866,1710994240640,-500.0,0.00060272,120]
[319843867,1710994240650,-718.41,0.00060272,120]
[319843868,1710994240660,-500.0,0.00060272,120]
[319843869,1710994240670,-715.32,0.00060272,120]
[319843870,1710994240680,-500.0,0.00060272,120]
[319843871,1710994240689,-500.0,0.00060272,120]
[319843872,1710994240698,-500.0,0.00060272,120]
[319843873,1710994240708,-558.96031961,0.00060549,2]
[319843874,1710994240717,-7112.56087012,0.00061013,61]
[319844004,1710994247109,-603.48,0.00057532,120]
[319844005,1710994247118,-603.48,0.00060272,120]
[319844006,1710994247128,-1053.190261,0.00061013,61]
[319844007,1710994247137,-1253.42201579,0.00061013,7]
[319844008,1710994247146,-209.01983337,0.00061013,7]
[319844009,1710994247155,-428.78877956,0.00061013,7]
[319844010,1710994247164,-1264.57664428,0.00061013,7]
[319844011,1710994247173,-556.57467971,0.00061013,7]
[319844012,1710994247182,-326.38143345,0.00061013,7]
[319844013,1710994247191,-300.18465312,0.00061013,7]
[319844014,1710994247200,-187.5384845,0.00061014,2]
[319844015,1710994247209,-277.45257937,0.00061014,7]
[319844016,1710994247219,-886.53014666,0.00061014,7]
[319844017,1710994247228,-927.45562841,0.00061015,7]
[319844018,1710994247238,-500.0,0.00061017,120]
[319844019,1710994247248,-500.0,0.00061017,120]
[319844020,1710994247257,-500.0,0.00061017,120]
[319844021,1710994247266,-500.0,0.00061017,120]
[319844022,1710994247275,-500.0,0.00061017,120]
[319844023,1710994247288,-500.0,0.00061017,120]
[319844024,1710994247298,-500.0,0.00061017,120]
[319844025,1710994247308,-500.0,0.00061017,120]
[319844026,1710994247317,-896.92,0.00061117,120]
[319844027,1710994247326,-500.0,0.00061117,120]
[319844028,1710994247335,-2617.83,0.0006301,120]
[319844029,1710994247345,-5419.77,0.0006301,120]
[319844030,1710994247354,-500.0,0.0006301,120]
[319844031,1710994247364,-500.0,0.0006301,120]
[319844032,1710994247374,-500.0,0.0006301,120]
[319844033,1710994247383,-500.0,0.0006301,120]
[319844034,1710994247394,-1279.06,0.0006301,120]
[319844035,1710994247404,-154.84515485,0.00063012,120]
[319844036,1710994247414,-475.22547882,0.00063012,120]
[319844037,1710994247423,-1241.93,0.00063012,120]
[319844038,1710994247432,-500.0,0.00063012,120]
[319844039,1710994247441,-500.0,0.00063012,120]
[319844040,1710994247450,-500.0,0.00063012,120]
[319844041,1710994247458,-500.43,0.00063012,120]
[319844042,1710994247467,-500.0,0.00063012,120]
[319844043,1710994247477,-500.0,0.00063012,120]
[319844044,1710994247487,-177.76568152,0.00063012,120]
[319844045,1710994247496,-1143.46,0.00063012,120]
[319844046,1710994247504,-500.0,0.00063012,120]
[319844047,1710994247514,-1282.79,0.00063012,120]
[319844048,1710994247522,-4654.23,0.00063012,90]
[319844049,1710994247533,-500.0,0.00063012,120]
[319844050,1710994247542,-500.0,0.00063012,120]
[319844051,1710994247551,-500.0,0.00063012,120]
[319844052,1710994247560,-375.85330732,0.00063012,120]
[319844053,1710994248052,-536.09669268,0.00063012,120]
[319844054,1710994248063,-1009.51,0.00063012,120]
[319844055,1710994248074,-1665.78,0.00063012,120]
[319844056,1710994248084,-500.0,0.00063012,120]
[319844057,1710994248095,-718.41,0.00063012,120]
[319844058,1710994248105,-500.0,0.00063012,120]
[319844059,1710994248116,-715.32,0.00063012,120]
[319844060,1710994248126,-500.0,0.00063012,120]
[319844061,1710994248137,-500.0,0.00063012,120]
[319844062,1710994248147,-500.0,0.00063012,120]
[319844063,1710994248158,-4508.20553512,0.00063557,2]
[319844064,1710994248169,-181.01976086,0.00063656,7]
[319844065,1710994248180,-248.83661094,0.00063656,2]
[319844066,1710994248189,-335.74825838,0.00063656,7]
[319844067,1710994248198,-189.93186593,0.00063657,2]
[319844068,1710994248208,-540.79,0.00063657,60]
[319844069,1710994248228,-509.87,0.00063657,120]
[319844070,1710994248240,-500.0,0.00063657,120]
[319844071,1710994248253,-627.49478328,0.00063657,120]
[319844072,1710994248264,-5283.68,0.00063657,120]
[319844073,1710994248275,-1638.71,0.00063657,120]
[319844074,1710994248290,-2113.94,0.00063657,120]
[319844075,1710994248301,-2731.74,0.00063657,120]
[319844076,1710994248312,-485.92936761,0.00063657,120]
[319844077,1710994248323,-1839.43,0.00063657,120]
[319844078,1710994248334,-558.96031961,0.00063666,2]
[319844079,1710994248345,-500.0,0.00063757,120]
[319844080,1710994248356,-500.0,0.00063757,120]
[319844081,1710994248367,-500.0,0.00063757,120]
[319844082,1710994248377,-500.0,0.00063757,120]
[319844083,1710994248388,-500.0,0.00063757,120]
[319844084,1710994248398,-500.0,0.00063757,120]
[319844085,1710994248407,-500.0,0.00063757,120]
[319844086,1710994248417,-896.92,0.00063857,120]
[319844087,1710994248427,-500.0,0.00063857,120]
[319844088,1710994248436,-373.3,0.00064391,120]
[319844089,1710994248446,-485.0,0.000657,60]
[319844090,1710994248456,-2617.83,0.0006575,120]
[319844091,1710994248465,-4942.02287665,0.0006575,120]
[319844289,1710995231171,-387.32621965,0.00053999,4]
[319844320,1710995432603,-477.25748078,0.00053999,4]
[319844322,1710995432612,-42.74251922,0.00054,7]
[319844396,1710995438587,-452.62148078,0.00054,7]
[319844397,1710995438598,-500.0,0.00054792,120]
[319844398,1710995438607,-192.73090122,0.00055163,2]
[319844399,1710995438637,-24707.26909878,0.00055163,2]
[319844401,1710995438646,-3000.0,0.00055348,120]
[319844402,1710995438655,-245.20392,0.00055799,30]
[319844403,1710995438666,-172.64174597,0.00056171,14]
[319844405,1710995438675,-3659.35032393,0.0005753,4]
[319844406,1710995438684,-500.0,0.00057531,120]
[319844408,1710995438692,-518.25,0.00057531,120]
[319844409,1710995438704,-215.23165686,0.00057531,2]
[319844411,1710995438713,-500.0,0.00057531,2]
[319844413,1710995438723,-500.0,0.00057531,120]
[319844414,1710995438732,-500.0,0.00057531,120]
[319844416,1710995438742,-5063.53,0.00057531,120]
[319844418,1710995438751,-1570.43,0.00057531,120]
[319844420,1710995438760,-2025.86,0.00057531,120]
[319844421,1710995438769,-2617.91,0.00057531,120]
[319844422,1710995438779,-500.0,0.00057531,120]
[319844423,1710995438787,-500.0,0.00057531,120]
[319844424,1710995438796,-919.3,0.00057531,120]
[319844425,1710995438805,-500.0,0.00057531,120]
[319844426,1710995438814,-330.12522082,0.00057531,120]
[319844427,1710995438823,-500.0,0.00057531,120]
[319844428,1710995438833,-500.0,0.00057532,120]
[319844429,1710995438841,-536.60285631,0.00057532,120]
[319844430,1710995438851,-519.15192127,0.00057532,120]
[319844431,1710995438860,-500.0,0.00057532,120]
[319844432,1710995438869,-500.0,0.00057532,120]
[319844433,1710995438878,-500.0,0.00057532,120]
[319844434,1710995438888,-500.0,0.00057532,120]
[319844435,1710995438897,-500.0,0.00057532,120]
[319844436,1710995438906,-500.0,0.00057532,120]
[319844437,1710995438916,-500.0,0.00057532,120]
[319844438,1710995438925,-500.0,0.00057532,120]
[319844439,1710995438933,-500.0,0.00057532,120]
[319844440,1710995438952,-500.0,0.00057532,120]
[319844441,1710995438966,-502.66454257,0.00057532,120]
[319844442,1710995438976,-503.1146857,0.00057532,120]
[319844443,1710995438986,-500.0,0.00057532,120]
[319844444,1710995438996,-500.0,0.00057532,120]
[319844445,1710995439005,-500.0,0.00057532,120]
[319844446,1710995439016,-501.91171675,0.00057532,120]
[319844447,1710995439026,-155.58784648,0.00057532,7]
[319844448,1710995439036,-500.0,0.00057532,120]
[319844449,1710995439045,-500.0,0.00057532,120]
[319844450,1710995439185,-501.56153133,0.00057532,120]
[319844451,1710995439198,-565.31586129,0.0006017,2]
[319844452,1710995439207,-428.51586324,0.00060269,120]
[319844453,1710995439217,-182.97773889,0.00060269,120]
[319844454,1710995439226,-282.1275379,0.00060269,120]
[319844455,1710995439236,-2181.53,0.00060269,120]
[319844456,1710995439245,-500.0,0.00060269,120]
[319844457,1710995439256,-500.0,0.00060269,120]
[319844458,1710995439265,-561.52292432,0.00060269,120]
[319844459,1710995439275,-500.0,0.00060269,120]
[319844460,1710995439284,-500.0,0.00060269,120]
[319844461,1710995439295,-500.0,0.00060269,120]
[319844462,1710995439307,-500.0,0.00060269,120]
[319844463,1710995439317,-1698.17,0.00060269,120]
[319844464,1710995439328,-500.0,0.0006027,120]
[319844465,1710995439338,-500.0,0.0006027,120]
[319844466,1710995439348,-500.0,0.0006027,120]
[319844467,1710995439358,-500.0,0.0006027,120]
[319844468,1710995439369,-500.0,0.0006027,120]
[319844469,1710995439379,-332.24007116,0.0006027,120]
[319844470,1710995439390,-500.0,0.0006027,120]
[319844471,1710995439399,-1000.53,0.0006027,120]
[319844472,1710995439409,-500.0,0.0006027,120]
[319844473,1710995439420,-7728.49,0.0006027,90]
[319844474,1710995439430,-500.0,0.0006027,120]
[319844475,1710995439440,-1194.79,0.0006027,120]
[319844476,1710995439453,-4628.63,0.0006027,120]
[319844477,1710995439463,-500.0,0.0006027,120]
[319844478,1710995439473,-846.74,0.0006027,120]
[319844479,1710995439483,-1546.47,0.0006027,120]
[319844480,1710995439493,-668.1,0.0006027,120]
[319844481,1710995439504,-500.0,0.0006027,120]
[319844482,1710995439514,-500.0,0.0006027,120]
[319844483,1710995439524,-646.74,0.0006027,120]
[319844484,1710995439534,-500.92074551,0.0006027,120]
[319844485,1710995439544,-500.0,0.0006027,120]
[319844486,1710995439554,-501.13089775,0.0006027,120]
[319844487,1710995439565,-500.0,0.0006027,120]
[319844488,1710995439577,-4082.87556556,0.00060271,61]
[319844489,1710995439587,-500.0,0.00060271,120]
[319844490,1710995439596,-518.25,0.00060271,120]
[319844491,1710995439605,-500.0,0.00060271,120]
[319844492,1710995439616,-500.10056831,0.00060271,120]
[319844493,1710995439626,-5063.53,0.00060271,120]
[319844494,1710995439636,-1570.43,0.00060271,120]
[319844495,1710995439647,-2025.86,0.00060271,120]
[319844496,1710995439658,-2617.91,0.00060271,120]
[319844497,1710995439669,-500.0,0.00060271,120]
[319844498,1710995439680,-500.0,0.00060271,120]
[319844499,1710995439691,-919.3,0.00060271,120]
[319844500,1710995439704,-500.0,0.00060271,120]
[319844501,1710995439715,-500.0,0.00060272,120]
[319844502,1710995439725,-409.24220001,0.00060272,120]
[319844503,1710995439735,-500.0,0.00060272,120]
[319844504,1710995439745,-565.31586126,0.00061769,2]
[319844505,1710995439757,-328.67,0.00062462,7]
[319844506,1710995439767,-1000.0,0.00062909,120]
[319844507,1710995439778,-500.0,0.00063009,120]
[319844508,1710995439787,-500.0,0.00063009,120]
[319844509,1710995439797,-500.0,0.00063009,120]
[319844510,1710995439806,-500.0,0.00063009,120]
[319844511,1710995439815,-240.71186375,0.00063009,120]
[319844512,1710995439825,-500.0,0.00063009,120]
[319844513,1710995439834,-500.0,0.00063009,120]
[319844514,1710995439843,-500.29750732,0.00063009,120]
[319844515,1710995439852,-602.58026671,0.00063009,120]
[319844516,1710995439861,-502.5342667,0.00063009,120]
[319844517,1710995439871,-500.0,0.00063009,120]
[319844518,1710995439881,-500.0,0.00063009,120]
[319844519,1710995439891,-500.0,0.00063009,120]